Cogmind - Beta 15 @@@ ROGUE MODE // 2025.06.01 @ 22:30:28 Player: shockman27 Result: Destroyed by H-55 Commando with Assault Rifle Performance ------------- Evolutions (3) 1500 Regions Visited (5) 1000 Robots Destroyed (193) 965 Value Destroyed (6667) 6667 Prototype IDs (11) 220 Alien Tech Used (0) 0 Bonus (1420) 1420 TOTAL SCORE: 11772 Bonus ------- High Alert Combat Kills 997 Follower Combat Kills 223 Entered Garrisons 200 Cogmind --------- Core Integrity 0/700 Matter 119/300 Energy 100/100 System Corruption 10% Temperature Warm (149) Movement Core (350) Ox6 Location -7/Factory Parts ------- > --- POWER (1) -------- (None) > --- PROPULSION (4) --- (None) > --- UTILITY (6) ------ Large Storage Unit Improved Signal Interpreter > --- WEAPON (2) ------- (None) > --- INVENTORY (15) --- High-capacity Matter Pod (200) Improved Light Armor Plating Hacking Suite Recalibrator Autogun Minigun Gauss Rifle Gauss Rifle Assault Cannon Assault Cannon Peak State ------------ > --- POWER ------------ Improved Deuterium Engine > --- PROPULSION ------- Carbon-fiber Leg Carbon-fiber Leg Carbon-fiber Leg Carbon-fiber Leg > --- UTILITY ---------- Large Storage Unit Improved Sensor Array Improved Signal Interpreter Improved Medium Armor Plating Hacking Suite Recalibrator > --- WEAPON ----------- Gauss Rifle Chainsword > --- INVENTORY -------- Improved Ion Engine Carbon-fiber Leg Titanium Leg High-capacity Storage Unit High-capacity Matter Pod Layered Light Armor Plating Hacking Suite Authchip [R/Combat] Authchip [R/Combat] Precision Shock Rifle Minigun Gauss Rifle Assault Cannon Heavy Missile Launcher [Rating: 46] Favorites ----------- Power Heavy Ion Engine Engine Heavy Ion Engine Power Core Micro Nuclear Core Propulsion Light Treads Treads Light Treads Leg Carbon-fiber Leg Wheel Wheel Utility Hacking Suite Device Improved Sensor Array Storage High-capacity Storage Unit Processor Improved Signal Interpreter Hackware Hacking Suite Protection Hardened Medium Armor Plating Weapon Improved Light Cannon Energy Gun Lightning Gun Energy Cannon Advanced Beam Cannon Ballistic Gun Heavy Assault Rifle Ballistic Cannon Improved Light Cannon Launcher Missile Launcher Special Weapon Mining Laser Impact Weapon Great Maul Slashing Weapon Chainsword Build | -11 -10 -9 -8 -8 -7 ------- Run | Yrd Mat Mat Mat Gar Fac Slots Evolved 6 | . . 2 2 . 2 Power . | . . . . . . Propulsion 2 | . . 1 1 . . Utility 4 | . . 1 1 . 2 Weapon . | . . . . . . Parts Attached 123 | 7 14 37 33 13 19 Power 13 | 1 3 3 1 3 2 Engine 8 | 1 3 1 1 . 2 Core 5 | . . 2 . 3 . Reactor . | . . . . . . Propulsion 36 | 2 3 10 11 4 6 Treads 19 | . 2 10 7 . . Leg 14 | . . . 4 4 6 Wheel 3 | 2 1 . . . . Hover . | . . . . . . Flight . | . . . . . . Utility 33 | 2 2 12 8 3 6 Device 10 | 1 1 . 5 . 3 Storage 4 | 1 1 2 . . . Processor 2 | . . . . 1 1 Hackware 4 | . . 1 1 1 1 Protection 13 | . . 9 2 1 1 Artifact . | . . . . . . Weapon 41 | 2 6 12 13 3 5 Energy Gun 8 | 1 . 3 2 1 1 Energy Cannon 3 | . 3 . . . . Ballistic Gun 19 | 1 2 5 7 2 2 Ballistic Cannon 4 | . . 3 1 . . Launcher 3 | . . . 2 . 1 Special Weapon 1 | . 1 . . . . Impact Weapon 2 | . . 1 1 . . Slashing Weapon 1 | . . . . . 1 Piercing Weapon . | . . . . . . Special Melee Weapon . | . . . . . . Unidentified Prototypes 8 | . 1 2 4 . 1 Parts Lost 44 | . . 5 5 12 22 Power 6 | . . . . 3 3 Propulsion 16 | . . 1 3 4 8 Utility 12 | . . 3 2 1 6 Weapon 10 | . . 1 . 4 5 Highest Loss Streak 13 | . . 3 2 4 13 To Critical Strikes . | . . . . . . Average Backups 16 | 3 13 16 19 18 14 Power . | . 1 1 1 . . Propulsion 3 | 2 2 3 4 4 2 Utility 5 | . 4 5 5 6 5 Weapon 6 | . 4 5 8 7 5 Tool/Special . | . . . . . . Unused Backups 38 | . 9 8 6 2 13 Power 4 | . 3 1 . . . Propulsion 9 | . 1 2 2 2 2 Utility 10 | . 2 2 1 . 5 Weapon 15 | . 3 3 3 . 6 Tool/Special . | . . . . . . Average Slot Usage (%) 98 | . 99 99 99 99 93 Engine 5 | . 14 1 9 1 3 Core 4 | . . 9 . 7 3 Treads 19 | . 23 32 23 . . Leg 13 | . . . 11 35 29 Device 9 | . 14 8 8 9 10 Storage 10 | . 14 11 9 9 7 Processor 2 | . . . . 9 7 Hackware 5 | . . 3 8 4 6 Protection 6 | . . 9 8 4 6 Energy Gun 1 | . 2 . 3 2 . Energy Cannon 2 | . 11 1 . . . Ballistic Gun 9 | . 13 9 9 10 7 Ballistic Cannon 3 | . . 8 3 . . Impact Weapon 2 | . . 2 2 4 2 Peak Build Rating 46 | 7 14 21 43 43 46 Average Rating 27 | 4 10 17 32 39 42 On Entrance 19 | . 7 12 17 43 39 Naked Turns . | . . . . . . Heaviest Build 77 | 13 35 77 66 61 59 Greatest Support 86 | 26 40 66 86 80 62 Greatest Overweight (x) 7 | . 1 1 3 . 7 Average Overweight (x) . | . . . . . . Largest Inventory Capacity 20 | 8 15 20 20 20 20 Average Capacity 17 | 6 14 16 20 20 15 Most Carried 20 | 8 15 20 20 20 20 Average Carried 16 | 3 13 16 19 18 14 Final Capacity 20 | 8 15 20 20 20 15 Final Carried 20 | 7 15 20 20 20 10 Class Distribution -------------------- 75% | Mutant 24% | Scavenger-Mutant Dominant Class ---------------- Mutant | -10/Materials Mutant | -9/Materials Scavenger-Mutant | -8/Materials Mutant | -8/Garrison Mutant | -7/Factory Resources | -11 -10 -9 -8 -8 -7 ----------- Run | Yrd Mat Mat Mat Gar Fac Matter Collected 5530 | 259 741 1465 1418 1263 384 Remotely . | . . . . . . Salvage Created 7033 | 29 719 2011 2168 1403 703 Parts 423 | 6 54 136 116 74 37 Haulers Intercepted 13 | . 2 6 5 . . Recyclers Shooed 2 | . . . 1 . 1 Parts Field Recycled . | . . . . . . Retrieved Matter . | . . . . . . Parts Self-Destructed . | . . . . . . Prevented . | . . . . . . Kills | -11 -10 -9 -8 -8 -7 ------- Run | Yrd Mat Mat Mat Gar Fac Combat Hostiles Destroyed 139 | . 15 42 40 33 9 Melee 1 | . . 1 . . . Guns 74 | . 6 18 21 24 5 Cannons 41 | . 9 19 13 . . AOE 21 | . . 2 6 9 4 Classes Destroyed 16 | 1 6 5 2 1 1 Worker 6 | . . 3 1 . 2 Builder 5 | . . 2 1 . 2 Tunneler 3 | 2 . . 1 . . Hauler 13 | . 2 6 5 . . Recycler 7 | . . 3 1 . 3 Mechanic 2 | . 1 . . . 1 Operator 7 | . 3 2 2 . . Watcher 11 | . 3 4 4 . . Swarmer 32 | . 5 9 6 10 2 Grunt 61 | . 10 21 20 10 . Brawler 3 | . . . 2 1 . Duelist 4 | . . 2 2 . . Protector 1 | . . . . . 1 Sentry 29 | . . 10 9 7 3 Hunter 5 | . . . 1 2 2 Programmer 4 | . . . . 3 1 Best Kill Streak 8 | 2 3 8 5 5 5 Combat Bots Only 6 | . 3 6 4 5 2 Max Kills in Single Turn 4 | 1 1 2 3 3 4 Gunslinging 1 | . . . . 1 . Exploded 3 | . . 2 3 3 2 Melee 1 | . . 1 . . . Uniques/NPCs Destroyed . | . . . . . . Combat | -11 -10 -9 -8 -8 -7 -------- Run | Yrd Mat Mat Mat Gar Fac Hostile Shots Fired 1075 | . 72 239 177 182 405 Missed 351 | . 25 64 56 45 161 Hits 724 | . 47 175 121 137 244 Melee 10 | . . 3 2 5 . Projectile 714 | . 47 172 119 132 244 Critical Strikes 21 | . 2 3 5 5 6 Part Disruptions 1 | . . . . 1 . Damage Taken 9435 | . 449 2094 1841 2045 3006 Core 1449 | . 100 249 163 233 704 Absorbed by Shields 120 | . . . . 120 . Regen/Repaired (Parts) 200 | . . 200 . . . Core Remaining (%) 56 | 100 60 37 . 28 . Volleys Fired 542 | 5 78 144 135 143 37 Largest 2 | 2 2 2 2 2 2 Hottest 100 | 70 100 91 88 80 83 Shots Fired 1025 | 10 150 273 264 256 72 Gun 762 | 10 105 131 199 247 70 Cannon 246 | . 42 142 62 . . Launcher 14 | . . . 3 9 2 Special 3 | . 3 . . . . Kinetic 782 | 5 75 237 198 210 57 Thermal 115 | 5 75 35 . . . Explosive 14 | . . . 3 9 2 Electromagnetic 114 | . . 1 63 37 13 Robot Hit Streak 36 | 4 8 17 12 13 36 Robot Miss Streak 6 | 2 6 4 4 5 2 Penetration Max 1 | . . . 1 1 . Secondary Targets 8 | . . 1 3 4 . Max Gunslinging Chain 1 | . . 1 1 1 . Shots Hit Robots 647 | 6 78 177 192 130 64 Core Hits 289 | 3 34 72 87 61 32 Critical Kills 4 | . 1 2 1 . . Critical Parts Destroyed 7 | . . 3 1 3 . Critical Strikes 26 | . 3 12 5 6 . Burn 2 | . 2 . . . . Meltdown 2 | . . 2 . . . Destroy 4 | . 1 . 2 1 . Blast 9 | . . 7 2 . . Corrupt 4 | . . . 1 3 . Smash 5 | . . 3 . 2 . Melee Attacks 96 | . . 21 11 27 37 Impact 77 | . . 21 11 27 18 Slashing 19 | . . . . . 19 Piercing . | . . . . . . Sneak Attacks 7 | . . 2 3 . 2 Combat Hostiles . | . . . . . . Follow-up Attacks . | . . . . . . Damage Inflicted 14931 | 74 1218 3860 4373 3155 2251 Guns 8194 | 74 763 1363 2753 2123 1118 Cannons 3370 | . 455 1843 1072 . . Explosions 2152 | . . 98 378 736 940 Melee 1214 | . . 556 169 296 193 Ramming 1 | . . . 1 . . Kinetic 8880 | 36 501 2720 2883 1803 937 Thermal 1461 | 38 717 546 33 . 127 Explosive 1894 | . . . 345 736 813 Electromagnetic 1481 | . . 38 942 320 181 Impact 1021 | . . 556 169 296 . Slashing 193 | . . . . . 193 Piercing . | . . . . . . Highest Corruption 10 | . . 1 3 4 10 Average Corruption 2 | . . 1 2 3 4 Corruption Purged . | . . . . . . Corruption Blocked . | . . . . . . Effects 113 | . . 14 45 51 3 Message Errors 24 | . . 4 7 13 . Matter Fused 31 | . . 4 13 14 . Heat Flow Errors 13 | . . 4 5 3 1 Energy Discharges 12 | . . 1 5 6 . Parts Rejected 1 | . . . 1 . . Data Loss (minor) 14 | . . 1 6 5 2 Data Loss (major) 7 | . . . 3 4 . Misfires 4 | . . . . 4 . Alerts 4 | . . . 3 1 . Weapon Failures 3 | . . . 2 1 . Overload Shots . | . . . . . . Overflow Damage 651 | . 5 258 108 170 110 Projectiles 19 | . 5 14 . . . Explosions 79 | . . . 26 20 33 Melee 553 | . . 244 82 150 77 Knockbacks 23 | . . 14 7 2 . Impact 4 | . . . 2 2 . Kinetic 18 | . . 13 5 . . Secondary 1 | . . 1 . . . Self-Inflicted Damage 91 | . . . . 43 48 Shots 2 | . . . . 1 1 Rammed 1 | . . . 1 . . Targets Rammed 1 | . . . 1 . . Kicked . | . . . . . . Crushed . | . . . . . . Highest Temperature 533 | 18 181 533 306 321 164 Average Temperature 67 | 9 40 91 68 63 32 Received Heat Transfer 2806 | . 153 816 864 610 363 Effects 9 | . . 8 1 . . Shutdowns 3 | . . 3 . . . Energy Bleed 2 | . . 1 1 . . Interference 2 | . . 2 . . . Short Circuit 1 | . . 1 . . . Damage (minor) 1 | . . 1 . . . Siege Activations . | . . . . . . Martial Activations . | . . . . . . Shielding Activations . | . . . . . . Robots Disrupted 1 | . . . . 1 . Combat Hostiles 1 | . . . . 1 . Robots Corrupted 4 | . . 2 1 1 . Combat Hostiles 1 | . . 1 . . . Parts Fried 16 | . . 6 7 1 2 Impact Corruptions 14 | . . 7 4 3 . Robots Melted 2 | . . 2 . . . Combat Hostiles 1 | . . 1 . . . Parts Melted 5 | . 2 3 . . . Heat Transferred 2938 | 111 1813 864 50 . 100 Parts Sabotaged . | . . . . . . Parts Stolen . | . . . . . . Parts Stripped . | . . . . . . Power Chain Reactions 3 | . . 1 1 . 1 Alert | -11 -10 -9 -8 -8 -7 ------- Run | Yrd Mat Mat Mat Gar Fac Maximum Alert Level 5 | . . 2 2 5 4 Low Security (%) 30 | 100 100 15 43 . . Level 1 27 | . . 68 26 2 . Level 2 22 | . . 15 29 16 60 Level 3 8 | . . . . 19 38 Level 4 6 | . . . . 36 1 Level 5 4 | . . . . 25 . High Security . | . . . . . . Max Security . | . . . . . . Peak Influence 2105 | 10 121 610 594 2105 1104 Initial 1104 | . . 33 256 373 1104 Average 477 | 1 51 309 283 1255 666 Influence Increases 5587 | 10 560 1426 1259 1892 440 Destroy 0b10 Robot/C 2900 | . 300 840 800 800 160 Destroy 0b10 Robot/NC 285 | 10 45 100 75 10 45 Destroy Leader 628 | . 90 230 218 30 60 Allied During Kill 11 | . . . . 11 . Successful Hack 136 | . 30 28 26 12 40 Select Force Hacks 120 | . 60 60 . . . Disable Machine 195 | . 15 45 45 15 75 Anti-Garrison Action 850 | . . . . 850 . Destroy Structure 297 | . 5 18 50 164 60 Lose Combat Pursuer 165 | . 15 105 45 . . Influence Decreases 5123 | 10 479 898 1294 361 2081 Entered New Map 1603 | . . 48 353 201 1001 Time Decay 2420 | 10 479 650 731 . 550 Lost Part 440 | . . 50 50 120 220 Lost Ally 60 | . . . 10 40 10 Purge Threat 600 | . . 150 150 . 300 Squads Dispatched 25 | . 6 6 9 . 4 Investigation 8 | . 4 2 1 . 1 Extermination 2 | . . . . . 2 Reinforcement 10 | . 2 3 4 . 1 Assault 2 | . . 1 1 . . Garrison 3 | . . . 3 . . Intercept . | . . . . . . Searches Triggered . | . . . . . . Construction Impeded 3 | . . 1 1 . 1 Haulers Reinforced . | . . . . . . Active Scanning Responses . | . . . . . . Cargo Convoy Interrupts 1 | . . . . . 1 Stealth | -11 -10 -9 -8 -8 -7 --------- Run | Yrd Mat Mat Mat Gar Fac Distress Signals 12 | . 3 3 6 . . Communications Jammed . | . . . . . . Distress Signals . | . . . . . . Times Spotted 225 | . 32 62 64 41 26 Peak Tracking Total 13 | . 3 11 4 6 13 Tactical Retreats 8 | . 1 5 2 . . Traps | -11 -10 -9 -8 -8 -7 ------- Run | Yrd Mat Mat Mat Gar Fac Traps Triggered 11 | . 2 2 3 3 1 Indirectly . | . . . . . . Trap Hack Attempts . | . . . . . . Triggered . | . . . . . . Disarmed . | . . . . . . Reprogrammed . | . . . . . . Reused . | . . . . . . Traps Extracted . | . . . . . . Installed . | . . . . . . Triggered . | . . . . . . Machines | -11 -10 -9 -8 -8 -7 ---------- Run | Yrd Mat Mat Mat Gar Fac Machines Disabled 19 | . 1 3 3 7 5 Max in Single Turn 2 | . 1 1 1 2 1 Garrison Access 1 | . . . . . 1 Garrison Relay 4 | . . . . 4 . Phase Generator 1 | . . . . 1 . Machines Repaired . | . . . . . . Machines Dismantled . | . . . . . . Machines Sabotaged . | . . . . . . Overloaded Fab Kills . | . . . . . . Hacking | -11 -10 -9 -8 -8 -7 --------- Run | Yrd Mat Mat Mat Gar Fac Machines Accessed 46 | . 8 15 11 4 8 Terminals 34 | . 6 11 8 4 5 Fabricators 2 | . . . . . 2 Repair Stations 2 | . . 2 . . . Recycling Units 6 | . 2 2 2 . . Scanalyzers . | . . . . . . Garrison Access 2 | . . . 1 . 1 Total Hacks 128 | . 24 45 29 10 20 Successful 75 | . 13 25 18 2 17 Failed 51 | . 10 19 11 8 3 Catastrophic 5 | . . 1 2 2 . Database Lockouts 2 | . 1 1 . . . Manual 81 | . 24 23 21 1 12 Terminals 106 | . 22 34 25 10 15 Fabricators 4 | . . . . . 4 Repair Stations 9 | . . 9 . . . Recycling Units 7 | . 2 2 3 . . Scanalyzers . | . . . . . . Garrison Access 2 | . . . 1 . 1 Terminal Hacks 37 | . 6 12 9 2 8 Record 1 | . 1 . . . . Robot Analysis 6 | . 3 2 1 . . Prototype ID Bank 2 | . . 2 . . . Open Door 1 | . . . . 1 . Open DSF 1 | . . . . . 1 Level Access Points 1 | . . . 1 . . Branch Access Points 2 | . . 1 1 . . Terminal Index 1 | . . . 1 . . Fabricator Index 1 | . . . . . 1 Recycling Unit Index 1 | . . . . . 1 Alert Level 6 | . 1 2 1 . 2 Unreport Threat 4 | . . 1 1 . 2 Locate Traps 4 | . . 3 1 . . Recall Investigation 1 | . 1 . . . . Recall Extermination 1 | . . . . . 1 Hauler Manifests 2 | . . 1 1 . . Registered Prototypes 1 | . . . 1 . . Patrol Navigation 1 | . . . . 1 . Fabricator Hacks 2 | . . . . . 2 Network Status 2 | . . . . . 2 Repair Station Hacks 7 | . . 7 . . . Scan Component 4 | . . 4 . . . Repair 3 | . . 3 . . . Recycling Unit Hacks 3 | . . . 3 . . Report Inventory 2 | . . . 2 . . Retrieve Components 1 | . . . 1 . . Scanalyzer . | . . . . . . Garrison Access Hacks 2 | . . . 1 . 1 Unlock Access 1 | . . . 1 . . Seal Access 1 | . . . . . 1 Unauthorized Hacks 24 | . 7 6 5 . 6 Terminals 19 | . 5 4 5 . 5 Assimilate 2 | . . . 1 . 1 Botnet 12 | . 3 3 3 . 3 Operators 5 | . 2 1 1 . 1 Fabricators 1 | . . . . . 1 Haulers 1 | . . . . . 1 Repair Stations . | . . . . . . Recycling Units 4 | . 2 2 . . . Tunnel 4 | . 2 2 . . . Scanalyzers . | . . . . . . Garrison Access . | . . . . . . Data Cores Recovered 1 | . 1 . . . . Used . | . . . . . . Hacking Detections 37 | . 6 12 9 4 6 Full Trace Events 4 | . . 1 . 2 1 Feedback Events . | . . . . . . Feedback Blocked . | . . . . . . Robot Schematics Acquired . | . . . . . . Robots Built . | . . . . . . Authchips . | . . . . . . Time . | . . . . . . Total Robot Build Rating . | . . . . . . Part Schematics Acquired . | . . . . . . Parts Built . | . . . . . . Authchips . | . . . . . . Time . | . . . . . . Total Part Build Rating . | . . . . . . Parts Repaired 3 | . . 3 . . . Time 84 | . . 84 . . . Parts Recycled . | . . . . . . Recycled Matter . | . . . . . . Retrieved Matter . | . . . . . . Retrieved Components 10 | . . . 10 . . Parts Scanalyzed . | . . . . . . Part Schematics Acquired . | . . . . . . Parts Damaged . | . . . . . . Bothacking | -11 -10 -9 -8 -8 -7 ------------ Run | Yrd Mat Mat Mat Gar Fac Used RIF Installer . | . . . . . . Robots Hacked . | . . . . . . Non-combat . | . . . . . . Combat . | . . . . . . Robot Hacks Applied . | . . . . . . Relay Couplers Released 17 | . . . . 17 . Machine Destruction 17 | . . . . 17 . Fabnet Peak Effective % . | . . . . . . Robots Rewired 1 | . . . . 1 . Allies Hacked . | . . . . . . Hacks Repelled . | . . . . . . Allies | -11 -10 -9 -8 -8 -7 -------- Run | Yrd Mat Mat Mat Gar Fac Total Allies 4 | . . . 1 2 1 Largest Group 1 | . . . 1 1 1 Highest-Rated Group 31 | . . . 10 31 26 Highest-Rated Ally 31 | . . . 10 31 26 Initial Warlord ECA Mod 8 | . . . . . 8 Total Orders . | . . . . . . Ally Attacks 33 | . . . . 33 . Total Damage 515 | . . . . 515 . Kills 7 | . . . . 7 . Allies Corrupted 1 | . . . . 1 . Allies Melted . | . . . . . . Intel | -11 -10 -9 -8 -8 -7 ------- Run | Yrd Mat Mat Mat Gar Fac Active Infowar (turns) 12011 | 9 1868 2960 3472 2398 1304 Sensors 7174 | . . . 3472 2398 1304 Seismic 4837 | 9 1868 2960 . . . Robot Analysis Total 5 | . 3 2 . . . Derelict Logs Recovered . | . . . . . . Drone Launches . | . . . . . . Drone Recoveries . | . . . . . . Exploration | -11 -10 -9 -8 -8 -7 ------------- Run | Yrd Mat Mat Mat Gar Fac Turns Passed 13340 | 88 1868 3780 3609 2400 1595 Spaces Moved 7272 | 62 1041 1789 1889 1435 1056 Core 2 | 1 . . . . 1 Treads 3750 | . 857 1789 1104 . . Legs 3275 | . . . 785 1435 1055 Wheels 245 | 61 184 . . . . Hover . | . . . . . . Flight . | . . . . . . Fastest Speed 50 | 50 90 160 130 122 120 Average Speed 142 | 86 149 162 148 124 120 Slowest Speed 400 | 90 160 240 340 130 400 Overloaded Moves . | . . . . . . Propulsion Burnouts . | . . . . . . Robots Hopped . | . . . . . . Potential Cave-ins . | . . . . . . Cave-ins Triggered . | . . . . . . Exploration Rate (%) 64 | 4 97 98 93 73 22 Regions Visited 5 Branch Regions . Pre-discovered Areas 4 | . 2 2 . . . Known Exits Taken 1 | . . . 1 . . Unknown Exits Taken 3 | 1 1 1 . . . Scrap Searched . | . . . . . . Spaces Dug 63 | . 3 9 7 12 32 Terrain Destroyed 271 | . 3 14 55 136 63 Melee 56 | . . 8 7 9 32 Projectile 23 | . 3 5 8 7 . AOE 192 | . . 1 40 120 31 Terrain Rammed . | . . . . . . Walls Destroyed . | . . . . . . Machines Disabled . | . . . . . . Actions | -11 -10 -9 -8 -8 -7 --------- Run | Yrd Mat Mat Mat Gar Fac Total 9103 | 83 1205 2357 2422 1788 1248 Wait 780 | . 30 284 281 127 58 Move 7267 | 61 1040 1788 1888 1434 1056 Hop . | . . . . . . Pick Up 103 | 9 22 27 21 14 10 Fast Attach 31 | 6 2 8 10 2 3 Attach 38 | 1 1 6 6 12 12 Detach 6 | . . 2 1 1 2 Swap 133 | . 11 46 36 21 19 Drop 101 | 1 21 31 32 2 14 Fire 542 | 5 78 144 135 143 37 Melee 96 | . . 21 11 27 37 Ram . | . . . . . . Kick . | . . . . . . Crush 1 | . . . 1 . . Escape Stasis 2 | . . . . 2 . Rewire 3 | . . . . 3 . Trap . | . . . . . . Miscellaneous . | . . . . . . Route ------- -11/Scrapyard -10/Materials (discovered 6 exits: *Mat x3 / [*Min x2] / [*Sub]) -9/Materials (discovered 4 exits: *Mat x3 / *Min) -8/Materials (discovered 6 exits: *Fac x3 / *Sto x2 / Gar) -8/Garrison (discovered 3 exits: *Fac x3) -7/Factory (discovered 1 exit: [*Low]) History --------- Turn | Location | Event 8 | -11/Scrapyard | Discovered new exit (range 15) 89 | -11/Scrapyard | Entered Materials 208 | -10/Materials | Discovered new exit (range 15) 303 | -10/Materials | Build established: Mutant 481 | -10/Materials | Discovered new exit (range 8) 575 | -10/Materials | Discovered new exit (range 16) 789 | -10/Materials | Derelicts attacked the area 910 | -10/Materials | Discovered new exit (range 16) 1294 | -10/Materials | Discovered new exit (range 16) 1501 | -10/Materials | Central database locked down 1761 | -10/Materials | Discovered new exit (range 6) 1957 | -10/Materials | Entered another Materials area 1957 | -9/Materials | Evolved 2 slots: Propulsion x1, Utility x1 2346 | -9/Materials | Discovered new exit (range 8) 2846 | -9/Materials | Discovered new exit (range 4) 3117 | -9/Materials | Identified exit to Mines 3237 | -9/Materials | Build established: Scavenger-Mutant 3493 | -9/Materials | Central database locked down 3640 | -9/Materials | Build established: Mutant 4352 | -9/Materials | Discovered new exit (range 16) 4781 | -9/Materials | Repaired Lgt. Treads 5065 | -9/Materials | Repaired Autogun 5092 | -9/Materials | Repaired Lgt. Treads 5557 | -9/Materials | First assault squad dispatched 5565 | -9/Materials | Core integrity fell below 50% 5625 | -9/Materials | Lost 3 parts (2u1w) 5737 | -9/Materials | Entered another Materials area 5737 | -8/Materials | Evolved 2 slots: Propulsion x1, Utility x1 6038 | -8/Materials | Build established: Scavenger-Mutant 6253 | -8/Materials | Discovered new exit (range 15) 7008 | -8/Materials | Discovered new exit (range 13) 8171 | -8/Materials | Discovered new exit (range 12) 8221 | -8/Materials | Garrison activated, responded to threat 8402 | -8/Materials | Discovered new exit (range 14) 8419 | -8/Materials | Build established: Mutant 8867 | -8/Materials | Identified exit to Storage 8867 | -8/Materials | Identified exit to Factory 9337 | -8/Materials | First assault squad dispatched 9344 | -8/Materials | Identified exit to Garrison 9346 | -8/Materials | Entered Garrison 9413 | -8/Garrison | Rescued a captive Derelict 9502 | -8/Garrison | Triggered checkpoint 9524 | -8/Garrison | Garrison Relay disabled 9729 | -8/Garrison | Triggered checkpoint 9780 | -8/Garrison | Triggered checkpoint 9809 | -8/Garrison | Core integrity fell below 50% 9870 | -8/Garrison | Lost 3 parts (2p1n) 9924 | -8/Garrison | Garrison Relay disabled 10051 | -8/Garrison | Discovered exit to Factory (range 14) 10245 | -8/Garrison | Triggered checkpoint 10308 | -8/Garrison | Discovered exit to Factory (range 10) 10336 | -8/Garrison | Triggered checkpoint 10396 | -8/Garrison | Garrison Relay disabled 10540 | -8/Garrison | Triggered checkpoint 10593 | -8/Garrison | Discovered exit to Factory (range 10) 10624 | -8/Garrison | Triggered checkpoint 10746 | -8/Garrison | Garrison Relay disabled 11008 | -8/Garrison | Lost 4 parts (1p3w) 11644 | -8/Garrison | Phase Generator disabled 11746 | -8/Garrison | Entered Factory 11746 | -7/Factory | Evolved 2 slots: Utility x2 12079 | -7/Factory | Identified exit to DSF 13172 | -7/Factory | Lost 3 parts (1n1u1w) 13208 | -7/Factory | Discovered new exit (range 9) 13253 | -7/Factory | Cargo convoy interrupted 13326 | -7/Factory | Core integrity fell below 50% 13334 | -7/Factory | Core integrity fell below 20% 13337 | -7/Factory | System corruption reached 10% 13341 | -7/Factory | Destroyed by H-55 Commando with Assault Rifle Last Messages --------------- 13334_ Slug penetrates Wall. 13336_ Imp. Targeting Computer destroyed. 13336_ Penetrated by Slug. 13338_ M-28 Smith destroyed. 13338_ ALERT: Construction progress impeded, dispatching reinforcements to local area. 13338_ U-05 Engineer lays Concrete. 13339_ System corrupted: Heat flow error (+179). 13339_ U-05 Engineer builds a Wall. 13339_ Penetrated by Slug. 13339_ U-05 Engineer lays Concrete. 13340_ P-60 Hacker resets H-55 Commando, system corruption cleaned. 13340_ P-60 Hacker resets P-60 Hacker, system corruption cleaned. 13340_ R-06 Scavenger destroyed. 13340_ Destroyed Com. Wheel. 13340_ I-36 Angel destroyed. 13340_ H-55 Commando destroyed. 13340_ U-05 Engineer destroyed. 13341_ Penetrated by Slug. 13341_ Hvy. Missile Launcher destroyed. Map ----- +----------------------------------------------------+ | ?????????????????????????? ???????????????????? | | ???????????????????????? ???????????????????? | | ??????????????????????# ???????????????????? | | ?????????????????????## ##?????????????????? | | ?????????????????????# #?????????????????? | | ?????????????????????# ??????????????????? | | ?????????????????????# ??????????????????? | | ?????????????????????# % ??????????????????? | | ?????????????????????# < % ??????????????????? | | ?????????????????????# ???????????????????? | | ?????????????????????# ???????????????????? | | ?????????????????????# ??????????????###### | | ?????????????????????? ??????????????# """" | | ???????????????????????# #??????????????# ""T" | | ???????????????????????# ################ | | ???????????????????????# # # | | ???????????????????????# %+ # | | ???????????????????????# # # """ | | ???????????????????????# # # """ | | ???????????????????????# # / # """ | | ???????????????????????# # # | | ???????????????????????# # # | | ???????????????????????# # # | | ???????????????????????# # # | | ???????????????????????# # ###### | | ???????????????????????# @ ########/####### !* | | ??????????????????????## r ##?????# #?????# [% | | ??????????????????????# hh #?????# #?????# %" | | ??????????????????????# #?????# #?????# %" | | ??????????????????????# #???###/####### "" | | ??????????????????????# ! #???# # | | ?????????????????????? #???#/ # "" | | ?????????????????????? #??## # "" | | ?????????????????????# *%p #??##! """"" # "% | | ?????????????????????## % ##??## """ #* | | ?????????????????????? %!pp #???# """ %+% "" | | ?????????????????????# !%* #???# #[ "" | | ?????????????????????# xrp #???# #* "" | | ????????????????# #### !r ################ | | ????????????????# % u | | ????????????????# a ! ! | | ?????????????? + | | ????????????????# "%" """ | | ??????????????" + """ """ | | ?????????????"" ########"" """ """ ###+### | | ?????????????"????????##"" !! # | | ???????????????????????#"T """ """ !! # | | ???????????????????????#"" """ """ ! # "" ] | | ???????????????????????#"" """ """ # "F | | ???????????????????????# # "" | +----------------------------------------------------+ Best States ------------- Heat Dissipation 34 Energy Generation 16 Energy Capacity 290 Matter Stores 300 Matter Capacity 300 Sight Range 16 Robot Scan Range 15 Terrain Scan Density 10 Armor Coverage 375 Core Shielding 20 Evasion (%) 63 Targeting Accuracy 6 Recoil Reduction 4 Offensive Hacking 10 Authchip Count 2 Item Schematics ----------------- None Robot Schematics ------------------ None Fabricated ------------ Nothing Repaired ---------- Lgt. Treads | 30% | -9/Materials Autogun | 68% | -9/Materials Lgt. Treads | 52% | -9/Materials Alien Tech Used ----------------- None Achievements -------------- None Challenges ------------ None Game ------ Seed ThiefOmegaChronowheel Manual? 0 Play Time 01:46:23 Cumulative 108.8 hours Start 2025.06.01 @ 18:30:03 End 2025.06.01 @ 22:30:28 Sessions 3 Manual Loads 0 Difficulty Rogue Special Mode None Game No. 64 Rogue 60 Adventurer 4 Explorer 0 Win Type - Total 2 Types 1/0/0/1/0/0/0/0/0/0 Lore% 48 Gallery% 47 Achievement% 43 Wizard Run 0 Options --------- Layout 0 ASCII 0 Keyboard 1 Movement Vi Keybinds 0 Fullscreen 1 Font 24/Crisp Map View 76x50 Zoom Use 0% Tactical HUD 1 Map Filters NONE Filters NONE Steam 1 RUN: 27379a8e-7624-4226-9d3c-1bf63863d7de